fUST/lending_fUST_20250901
["ID","MTS","AMOUNT","RATE_DAILY","PERIOD"]
[382535574,1756659055141,-1627.56,0.00018072,2]
[382535575,1756659055154,-902.2,0.00018072,2]
[382535576,1756659055167,-480.0,0.00018072,2]
[382535577,1756659055180,-480.0,0.00018072,2]
[382535578,1756659055193,-480.0,0.00018072,2]
[382535579,1756659055207,-330.93530943,0.00018072,2]
[382535580,1756659055220,-2903.5,0.00018072,2]
[382535581,1756659055233,-504.59,0.00018072,2]
[382535582,1756659055246,-151.0,0.00018072,2]
[382535583,1756659055259,-637.96,0.00018072,2]
[382535584,1756659055272,-480.0,0.00018072,2]
[382535585,1756659055285,-151.0,0.00018072,2]
[382535586,1756659055299,-1434.82,0.00018072,2]
[382535587,1756659055311,-151.0,0.00018072,2]
[382535588,1756659055321,-480.0,0.00018072,2]
[382535589,1756659055331,-1106.49,0.00018072,2]
[382535590,1756659055341,-863.64,0.00018072,2]
[382535591,1756659055351,-184.038744,0.00018072,2]
[382535592,1756659055360,-480.0,0.00018072,2]
[382535593,1756659055370,-480.0,0.00018072,2]
[382535594,1756659055380,-151.0,0.00018072,2]
[382535595,1756659055389,-151.0,0.00018072,2]
[382535596,1756659055399,-1237.46,0.00018072,2]
[382535597,1756659055642,-151.0,0.00018072,2]
[382535598,1756659055675,-669.06,0.00018072,2]
[382535599,1756659055689,-255.45653694,0.00018072,2]
[382535600,1756659055700,-151.0,0.00018072,2]
[382535601,1756659055709,-833.88,0.00018072,2]
[382535602,1756659055718,-151.0,0.00018072,2]
[382535603,1756659055728,-480.0,0.00018072,2]
[382535604,1756659055737,-480.0,0.00018072,2]
[382535605,1756659055748,-899.37,0.00018072,2]
[382535606,1756659055758,-571.25,0.00018072,2]
[382535607,1756659055767,-500.0,0.00018073,2]
[382535608,1756659055776,-500.0,0.00018073,2]
[382535609,1756659055786,-500.0,0.00018073,2]
[382535610,1756659055795,-500.0,0.00018073,2]
[382535611,1756659055805,-500.0,0.00018073,2]
[382535612,1756659055814,-327.10318878,0.00018073,2]
[382535613,1756659055824,-500.66724337,0.00018073,2]
[382535614,1756659055833,-500.0,0.00018073,2]
[382535615,1756659055843,-500.0,0.00018073,2]
[382535616,1756659055855,-500.0,0.00018073,2]
[382535617,1756659055865,-500.0,0.00018073,2]
[382535618,1756659055874,-500.0,0.00018073,2]
[382535619,1756659055884,-500.0,0.00018073,2]
[382535620,1756659055894,-500.0,0.00018073,2]
[382535621,1756659055903,-500.0,0.00018073,2]
[382535622,1756659055913,-500.0,0.00018073,2]
[382535623,1756659055923,-500.0,0.00018073,2]
[382535624,1756659055933,-500.0,0.00018073,2]
[382535625,1756659055942,-500.0,0.00018073,2]
[382535626,1756659055952,-500.0,0.00018073,2]
[382535627,1756659055960,-161.22446423,0.00018073,2]
[382535628,1756659055970,-500.0,0.00018073,2]
[382535629,1756659055980,-500.0,0.00018073,2]
[382535630,1756659055990,-500.0,0.00018073,2]
[382535631,1756659055999,-480.0,0.00018073,2]
[382535632,1756659056009,-480.0,0.00018073,2]
[382535633,1756659056020,-480.0,0.00018073,2]
[382535634,1756659056030,-403.69838574,0.00018073,2]
[382535635,1756659056039,-959.39,0.00018073,2]
[382535636,1756659056049,-480.0,0.00018073,2]
[382535637,1756659056058,-480.0,0.00018073,2]
[382535638,1756659056067,-480.0,0.00018073,2]
[382535639,1756659056077,-287.782845,0.00018073,2]
[382535640,1756659056086,-480.0,0.00018073,2]
[382535641,1756659056095,-480.0,0.00018073,2]
[382535642,1756659056106,-480.0,0.00018073,2]
[382535643,1756659056115,-151.0,0.00018073,2]
[382535644,1756659056125,-480.0,0.00018073,2]
[382535645,1756659056136,-480.0,0.00018073,2]
[382535646,1756659056147,-480.0,0.00018073,2]
[382535647,1756659056158,-480.0,0.00018073,2]
[382535648,1756659056167,-480.0,0.00018073,2]
[382535649,1756659056177,-480.0,0.00018073,2]
[382535650,1756659056187,-491.53,0.00018073,2]
[382535651,1756659056197,-480.0,0.00018073,2]
[382535653,1756659056207,-480.0,0.00018073,2]
[382535655,1756659056217,-480.0,0.00018073,2]
[382535657,1756659056228,-480.0,0.00018073,2]
[382535659,1756659056238,-151.0,0.00018073,2]
[382535661,1756659056247,-525.84,0.00018073,2]
[382535663,1756659056256,-480.0,0.00018073,2]
[382535664,1756659056266,-154.702727,0.00018073,2]
[382535665,1756659056275,-480.0,0.00018073,2]
[382535666,1756659056284,-480.0,0.00018073,2]
[382535667,1756659056294,-282.73421444,0.00018073,2]
[382535668,1756659056303,-480.0,0.00018073,2]
[382535669,1756659056314,-480.0,0.00018073,2]
[382535670,1756659056323,-702.91,0.00018073,2]
[382535671,1756659056333,-482.76,0.00018073,2]
[382535672,1756659056342,-480.0,0.00018073,2]
[382535673,1756659056351,-480.0,0.00018073,2]
[382535674,1756659056361,-480.0,0.00018073,2]
[382535675,1756659056372,-548.49,0.00018073,2]
[382535676,1756659056382,-591.87,0.00018073,2]
[382535677,1756659056391,-742.83,0.00018073,2]
[382535678,1756659056400,-434.75143549,0.00018073,2]
[382535680,1756659056409,-480.0,0.00018073,2]
[382535682,1756659056420,-480.0,0.00018073,2]
[382535683,1756659056429,-480.0,0.00018073,2]
[382535684,1756659056439,-554.89,0.00018073,2]
[382535685,1756659056448,-480.0,0.00018073,2]
[382535686,1756659056457,-480.0,0.00018073,2]
[382535687,1756659056466,-1349.91,0.00018073,2]
[382535688,1756659056476,-480.0,0.00018073,2]
[382535689,1756659056484,-480.0,0.00018073,2]
[382535690,1756659056493,-480.0,0.00018073,2]
[382535691,1756659056501,-480.0,0.00018073,2]
[382535692,1756659056510,-1120.3,0.00018073,2]
[382535693,1756659056519,-529.75,0.00018073,2]
[382535694,1756659056528,-480.0,0.00018073,2]
[382535695,1756659056537,-614.94830813,0.00018073,2]
[382535696,1756659056546,-933.06,0.00018073,2]
[382535697,1756659056555,-232.24603415,0.00018073,2]
[382535698,1756659056564,-480.0,0.00018073,2]
[382535699,1756659056573,-480.0,0.00018073,2]
[382535700,1756659056583,-583.31,0.00018073,2]
[382535701,1756659056592,-480.0,0.00018073,2]
[382535702,1756659056601,-480.0,0.00018073,2]
[382535703,1756659056611,-480.0,0.00018073,2]
[382535704,1756659056622,-494.29,0.00018073,2]
[382535705,1756659056631,-480.0,0.00018073,2]
[382535706,1756659056639,-1120.54,0.00018073,2]
[382535707,1756659056649,-817.85,0.00018073,2]
[382535708,1756659056658,-500.0,0.00018073,2]
[382535709,1756659056667,-1474.41,0.00018073,2]
[382535710,1756659056676,-480.0,0.00018073,2]
[382535711,1756659056686,-480.0,0.00018073,2]
[382535712,1756659056695,-969.31,0.00018073,2]
[382535713,1756659056704,-151.0,0.00018073,2]
[382535714,1756659056713,-151.0,0.00018073,2]
[382535715,1756659056722,-480.0,0.00018073,2]
[382535716,1756659056731,-480.0,0.00018073,2]
[382535717,1756659056741,-151.0,0.00018073,2]
[382535718,1756659056750,-1100.39,0.00018073,2]
[382535719,1756659056759,-480.0,0.00018073,2]
[382535720,1756659056768,-480.0,0.00018073,2]
[382535721,1756659056777,-151.0,0.00018073,2]
[382535722,1756659056787,-1287.82,0.00018073,2]
[382535723,1756659056796,-151.0,0.00018073,2]
[382535724,1756659056806,-480.0,0.00018073,2]
[382535725,1756659056815,-151.0,0.00018073,2]
[382535726,1756659056824,-480.0,0.00018073,2]
[382535727,1756659056834,-480.0,0.00018073,2]
[382535728,1756659056843,-480.0,0.00018073,2]
[382535729,1756659056854,-480.0,0.00018073,2]
[382535730,1756659056865,-480.0,0.00018073,2]
[382535731,1756659056875,-480.0,0.00018073,2]
[382535732,1756659056884,-151.0,0.00018073,2]
[382535733,1756659056893,-480.0,0.00018073,2]
[382535734,1756659056903,-439.57964417,0.00018073,2]
[382535735,1756659056912,-1415.49,0.00018073,2]
[382535736,1756659056922,-151.0,0.00018073,2]
[382535737,1756659056931,-151.0,0.00018073,2]
[382535738,1756659056941,-151.0,0.00018073,2]
[382535739,1756659056950,-151.0,0.00018073,2]
[382535740,1756659056960,-480.0,0.00018073,2]
[382535741,1756659056969,-480.0,0.00018073,2]
[382535742,1756659056980,-512.52,0.00018073,2]
[382535743,1756659056989,-480.0,0.00018073,2]
[382535744,1756659056999,-480.0,0.00018073,2]
[382535745,1756659057008,-151.0,0.00018073,2]
[382535746,1756659057017,-416.68614184,0.00018073,2]
[382535747,1756659057027,-480.0,0.00018073,2]
[382535748,1756659057038,-480.0,0.00018073,2]
[382535749,1756659057047,-480.0,0.00018073,2]
[382535750,1756659057060,-686.57,0.00018073,2]
[382535751,1756659057069,-659.82,0.00018073,2]
[382535752,1756659057079,-151.0,0.00018073,2]
[382535753,1756659057089,-890.58,0.00018073,2]
[382535754,1756659057099,-663.59,0.00018073,2]
[382535755,1756659057109,-151.0,0.00018073,2]
[382535756,1756659057118,-151.0,0.00018073,2]
[382535757,1756659057128,-585.21,0.00018073,2]
[382535758,1756659057138,-607.62937422,0.00018073,2]
[382535759,1756659057148,-1419.66,0.00018073,2]
[382535760,1756659057158,-480.0,0.00018073,2]
[382535761,1756659057167,-480.0,0.00018073,2]
[382535762,1756659057177,-480.0,0.00018073,2]
[382535763,1756659057191,-594.61,0.00018073,2]
[382535764,1756659057202,-1015.26,0.00018073,2]
[382535765,1756659057211,-480.0,0.00018073,2]
[382535766,1756659057221,-480.0,0.00018073,2]
[382535767,1756659057231,-1319.99,0.00018073,2]
[382535768,1756659057240,-495.26,0.00018073,2]
[382535769,1756659057250,-480.0,0.00018073,2]
[382535770,1756659057259,-480.0,0.00018073,2]
[382535771,1756659057269,-480.0,0.00018073,2]
[382535772,1756659057278,-480.0,0.00018073,2]
[382535773,1756659057288,-1124.57,0.00018073,2]
[382535774,1756659057298,-1318.53,0.00018073,2]
[382535775,1756659057308,-580.15751368,0.00018073,2]
[382535776,1756659057317,-1080.55,0.00018073,2]
[382535777,1756659057327,-644.79,0.00018073,2]
[382535778,1756659057336,-480.0,0.00018073,2]
[382535779,1756659057346,-480.0,0.00018073,2]
[382535780,1756659057356,-1134.89,0.00018073,2]
[382535781,1756659057366,-240.98376815,0.00018073,2]
[382535782,1756659057375,-480.0,0.00018073,2]
[382535783,1756659057384,-480.0,0.00018073,2]
[382535784,1756659057394,-480.0,0.00018073,2]
[382535785,1756659057403,-480.0,0.00018073,2]
[382535787,1756659057413,-587.65353831,0.00018073,2]
[382535789,1756659057422,-480.0,0.00018073,2]
[382535791,1756659057432,-1271.12,0.00018073,2]
[382535793,1756659057442,-837.88,0.00018073,2]
[382535795,1756659057459,-621.59548838,0.00018073,2]
[382535796,1756659057471,-480.0,0.00018073,2]
[382535797,1756659057480,-1105.46,0.00018073,2]
[382535799,1756659057489,-963.33,0.00018073,2]
[382535801,1756659057498,-613.27,0.00018073,2]
[382535802,1756659057508,-752.24,0.00018073,2]
[382535803,1756659057518,-480.0,0.00018073,2]
[382535804,1756659057527,-480.0,0.00018073,2]
[382535805,1756659057537,-1399.16,0.00018073,2]
[382535806,1756659057547,-480.0,0.00018073,2]
[382535807,1756659057556,-480.0,0.00018073,2]
[382535808,1756659057566,-480.0,0.00018073,2]
[382535809,1756659057575,-480.0,0.00018073,2]
[382535810,1756659057585,-480.0,0.00018073,2]
[382535811,1756659057594,-839.11,0.00018073,2]
[382535812,1756659057604,-648.71,0.00018073,2]
[382535813,1756659057613,-487.07,0.00018073,2]
[382535814,1756659057623,-663.73,0.00018073,2]
[382535815,1756659057632,-1115.72,0.00018073,2]
[382535816,1756659057644,-480.0,0.00018073,2]
[382535817,1756659057654,-779.22,0.00018073,2]
[382535818,1756659057664,-1375.71,0.00018073,2]
[382535819,1756659057675,-480.0,0.00018073,2]
[382535820,1756659057686,-987.25,0.00018073,2]
[382535821,1756659057697,-480.0,0.00018073,2]
[382535822,1756659057715,-480.0,0.00018073,2]
[382535823,1756659057736,-480.0,0.00018073,2]
[382535824,1756659057748,-480.0,0.00018073,2]
[382535825,1756659057758,-696.7,0.00018073,2]
[382535826,1756659057767,-480.0,0.00018073,2]
[382535827,1756659057777,-653.96,0.00018073,2]
[382535828,1756659057787,-480.0,0.00018073,2]
[382535829,1756659057797,-480.0,0.00018073,2]
[382535830,1756659057807,-887.24,0.00018073,2]
[382535831,1756659057816,-551.1974654,0.00018073,2]
[382535832,1756659057825,-480.0,0.00018073,2]
[382535833,1756659057835,-553.78,0.00018073,2]
[382535834,1756659057846,-480.0,0.00018073,2]
[382535835,1756659057858,-480.0,0.00018073,2]
[382535836,1756659057867,-480.0,0.00018073,2]
[382535837,1756659057877,-480.0,0.00018073,2]
[382535838,1756659057887,-807.57,0.00018073,2]
[382535839,1756659057897,-1988.84,0.00018073,2]
[382535840,1756659057907,-963.8,0.00018073,2]
[382535841,1756659057916,-480.96,0.00018073,2]
[382535842,1756659057926,-480.0,0.00018073,2]
[382535843,1756659057936,-1698.69,0.00018073,2]
[382535844,1756659057945,-480.0,0.00018073,2]
[382535845,1756659057955,-480.0,0.00018073,2]
[382535846,1756659057965,-1182.42,0.00018073,2]
[382535847,1756659057975,-480.0,0.00018073,2]
[382535848,1756659057985,-480.0,0.00018073,2]
[382535849,1756659057995,-480.0,0.00018073,2]
[382535850,1756659058004,-480.0,0.00018073,2]
[382535851,1756659058014,-524.45,0.00018073,2]
[382535852,1756659058023,-522.28,0.00018073,2]
[382535853,1756659058032,-480.0,0.00018073,2]
[382535854,1756659058042,-480.0,0.00018073,2]
[382535855,1756659058052,-480.0,0.00018073,2]
[382535856,1756659058062,-549.9,0.00018073,2]
[382535857,1756659058071,-618.67,0.00018073,2]
[382535858,1756659058080,-510.09,0.00018073,2]
[382535859,1756659058090,-682.3,0.00018073,2]
[382535860,1756659058099,-593.76,0.00018073,2]
[382535861,1756659058108,-480.0,0.00018073,2]
[382535862,1756659058118,-480.0,0.00018073,2]
[382535863,1756659058127,-480.0,0.00018073,2]
[382535864,1756659058136,-480.0,0.00018073,2]
[382535865,1756659058145,-755.44,0.00018073,2]
[382535866,1756659058155,-1379.26,0.00018073,2]
[382535867,1756659058164,-550.04,0.00018073,2]
[382535868,1756659058173,-480.0,0.00018073,2]
[382535869,1756659058183,-1295.54,0.00018073,2]
[382535870,1756659058192,-779.48,0.00018073,2]
[382535871,1756659058202,-480.0,0.00018073,2]
[382535872,1756659058211,-480.0,0.00018073,2]
[382535873,1756659058221,-480.0,0.00018073,2]
[382535874,1756659058231,-480.0,0.00018073,2]
[382535875,1756659058240,-480.0,0.00018073,2]
[382535876,1756659058250,-480.0,0.00018073,2]
[382535877,1756659058259,-480.0,0.00018073,2]
[382535878,1756659058268,-913.44,0.00018073,2]
[382535879,1756659058278,-480.0,0.00018073,2]
[382535880,1756659058287,-557.47,0.00018073,2]
[382535881,1756659058296,-1062.58,0.00018073,2]
[382535882,1756659058306,-480.0,0.00018073,2]
[382535883,1756659058316,-664.7,0.00018073,2]
[382535884,1756659058325,-599.00710125,0.00018073,2]
[382535885,1756659058335,-480.0,0.00018073,2]
[382535886,1756659058344,-480.0,0.00018073,2]
[382535887,1756659058354,-480.0,0.00018076,2]
[382535888,1756659058364,-1208.02,0.00018076,2]
[382535889,1756659058373,-480.0,0.00018076,2]
[382535890,1756659058383,-480.0,0.00018076,2]
[382535891,1756659058393,-480.0,0.00018076,2]
[382535892,1756659058402,-480.0,0.00018076,2]
[382535893,1756659058412,-653.05,0.00018076,2]
[382535894,1756659058421,-480.0,0.00018076,2]
[382535895,1756659058431,-480.0,0.00018076,2]
[382535896,1756659058442,-480.0,0.00018076,2]
[382535897,1756659058452,-602.86568468,0.00018076,2]
[382535898,1756659058462,-480.0,0.00018076,2]
[382535899,1756659058472,-548.86,0.00018076,2]
[382535900,1756659058482,-480.0,0.00018076,2]
[382535901,1756659058491,-271.31029319,0.00018076,2]
[382535902,1756659058501,-480.0,0.00018076,2]
[382535903,1756659058511,-480.0,0.00018076,2]
[382535904,1756659058521,-704.93,0.00018076,2]
[382535905,1756659058531,-151.0,0.00018076,2]
[382535906,1756659058542,-480.0,0.00018076,2]
[382535907,1756659058552,-151.0,0.00018076,2]
[382535908,1756659058562,-554.81,0.00018076,2]
[382535909,1756659058572,-480.0,0.00018076,2]
[382535910,1756659058582,-184.400329,0.00018076,2]
[382535911,1756659058591,-151.0,0.00018076,2]
[382535912,1756659058601,-480.0,0.00018076,2]
[382535913,1756659058611,-480.0,0.00018076,2]
[382535914,1756659058620,-913.52,0.00018076,2]
[382535915,1756659058630,-489.19,0.00018076,2]
[382535916,1756659058640,-480.0,0.00018076,2]
[382535917,1756659058650,-610.9,0.00018076,2]
[382535918,1756659058660,-480.0,0.00018076,2]
[382535919,1756659058670,-762.93,0.00018076,2]
[382535920,1756659058679,-530.97,0.00018076,2]
[382535921,1756659058690,-480.0,0.00018076,2]
[382535922,1756659058699,-585.91,0.0001808,2]
[382535923,1756659058709,-4038.37,0.0001808,2]
[382535924,1756659058719,-2456.42,0.0001808,2]
[382535925,1756659058730,-509.24,0.0001808,2]
[382535926,1756659058741,-1226.54,0.0001808,2]
[382535927,1756659058750,-793.22,0.0001808,2]
[382535928,1756659058760,-1549.82,0.0001808,2]
[382535929,1756659058770,-719.76,0.0001808,2]
[382535930,1756659058780,-250.385,0.00018081,2]
[382535931,1756659058791,-153.097034,0.00018082,10]
[382535932,1756659058803,-514.08000986,0.00018085,2]
[382535933,1756659058812,-604.11338207,0.00018085,2]
[382535934,1756659058822,-409.0,0.00018087,2]
[382535935,1756659058832,-422.354,0.00018087,2]
[382535936,1756659058841,-975.0,0.00018087,2]
[382535937,1756659058851,-2152.0,0.00018087,2]
[382535938,1756659058860,-632.0,0.00018087,2]
[382535939,1756659058870,-151.0,0.000181,2]
[382535940,1756659058880,-188.96079114,0.00018114,2]
[382535941,1756659058890,-1000.0,0.00018121,2]
[382535942,1756659058900,-903.58140753,0.00018121,2]
[382535943,1756659058910,-1000.0,0.00018121,2]
[382535944,1756659058919,-299.55964499,0.00018121,2]
[382535945,1756659058930,-501.09309869,0.00018121,2]
[382535946,1756659058942,-1000.0,0.00018121,2]
[382535947,1756659059111,-1000.0,0.00018121,2]
[382535948,1756659059121,-1000.0,0.00018121,2]
[382535949,1756659059130,-1000.0,0.00018121,2]
[382535950,1756659059141,-1000.0,0.00018121,2]
[382535951,1756659059150,-1000.0,0.00018121,2]
[382535952,1756659059160,-510.94333666,0.00018121,2]
[382535953,1756659059170,-1000.0,0.00018121,2]
[382535954,1756659059180,-1000.0,0.00018121,2]
[382535955,1756659059191,-1000.0,0.00018121,2]
[382535956,1756659059201,-500.97484638,0.00018121,2]
[382535957,1756659059211,-1000.0,0.00018121,2]
[382535958,1756659059221,-1000.0,0.00018121,2]
[382535959,1756659059231,-1000.0,0.00018121,2]
[382535960,1756659059241,-486.9843952,0.00018121,2]
[382535961,1756659059252,-629.53150776,0.00018121,2]
[382535962,1756659059261,-1000.0,0.00018121,2]
[382535963,1756659059271,-1000.0,0.00018121,2]
[382535964,1756659059282,-1000.0,0.00018121,2]
[382535965,1756659059292,-1000.0,0.00018121,2]
[382535966,1756659059302,-1000.0,0.00018121,2]
[382535967,1756659059312,-1000.0,0.00018121,2]
[382535968,1756659059322,-684.13795126,0.00018121,2]
[382535969,1756659059331,-1019.97580936,0.00018121,2]
[382535970,1756659059341,-1000.0,0.00018121,2]
[382535971,1756659059351,-1000.0,0.00018121,2]
[382535972,1756659059361,-1000.0,0.00018121,2]
[382535973,1756659059370,-1000.0,0.00018121,2]
[382535974,1756659059380,-1000.0,0.00018121,2]
[382535975,1756659059390,-1000.0,0.00018121,2]
[382535976,1756659059402,-1000.0,0.00018121,2]
[382535977,1756659059412,-1000.0,0.00018121,2]
[382535978,1756659059422,-1000.0,0.00018121,2]
[382535979,1756659059432,-1000.0,0.00018121,2]
[382535980,1756659059441,-151.123548,0.00018121,2]
[382535981,1756659059451,-151.0,0.00018121,2]
[382535982,1756659059461,-151.0,0.00018121,2]
[382535983,1756659059470,-151.0,0.00018121,2]
[382535984,1756659059479,-151.0,0.00018121,2]
[382535985,1756659059489,-151.0,0.00018121,2]
[382535986,1756659059499,-151.0,0.00018121,2]
[382535987,1756659059509,-174.328887,0.00018121,2]
[382535988,1756659059519,-151.0,0.00018121,2]
[382535989,1756659059529,-151.0,0.00018121,2]
[382535990,1756659059540,-151.0,0.00018121,2]
[382535991,1756659059549,-190.444749,0.00018121,2]
[382535992,1756659059559,-190.444749,0.00018121,2]
[382535993,1756659059569,-190.444749,0.00018121,2]
[382535994,1756659059578,-190.444749,0.00018121,2]
[382535995,1756659059588,-151.0,0.00018121,2]
[382535996,1756659059598,-295.25533,0.00018121,2]
[382535998,1756659059608,-151.0,0.00018121,2]
[382536000,1756659059617,-151.0,0.00018121,2]
[382536002,1756659059626,-151.0,0.00018121,2]
[382536004,1756659059636,-151.0,0.00018121,2]
[382536006,1756659059646,-151.0,0.00018121,2]
[382536008,1756659059656,-151.0,0.00018121,2]
[382536010,1756659059665,-151.0,0.00018121,2]
[382536011,1756659059675,-151.0,0.00018121,2]
[382536012,1756659059684,-151.0,0.00018121,2]
[382536013,1756659059694,-151.0,0.00018121,2]
[382536014,1756659059703,-151.0,0.00018121,2]
[382536015,1756659059713,-151.0,0.00018121,2]
[382536016,1756659059723,-151.0,0.00018121,2]
[382536017,1756659059733,-168.0,0.00018155,2]
[382536018,1756659059742,-187.2916484,0.0001818,2]
[382536019,1756659059752,-151.0,0.000182,2]
[382536020,1756659059761,-537.76878379,0.00018212,2]
[382536021,1756659059771,-160.0,0.00018233,2]
[382536022,1756659059780,-435.25080159,0.00018247,2]
[382536023,1756659059791,-14603.14603986,0.00018247,2]
[382536024,1756659059801,-151.0,0.00018247,2]
[382536025,1756659059811,-200.0,0.00018247,3]
[382536026,1756659059821,-200.0,0.00018247,3]
[382536027,1756659059831,-200.0,0.00018247,3]
[382536028,1756659059841,-200.0,0.00018247,3]
[382536029,1756659059853,-200.0,0.00018247,3]
[382536030,1756659059863,-153.097034,0.00018255,15]
[382536031,1756659059873,-153.097034,0.00018255,15]
[382536032,1756659059882,-153.097034,0.00018255,15]
[382536033,1756659059892,-153.097034,0.00018257,10]
[382536034,1756659059902,-168.0,0.00018268,2]
[382536035,1756659059911,-1000.0,0.00018272,2]
[382536036,1756659059921,-1001.5677558,0.00018272,2]
[382536037,1756659059932,-1002.21089762,0.00018272,2]
[382536038,1756659059941,-1000.0,0.00018272,2]
[382536039,1756659059951,-151.0,0.00018272,2]
[382536040,1756659059961,-151.0,0.00018272,2]
[382536041,1756659059970,-168.0,0.00018319,2]
[382536042,1756659059980,-272.71618602,0.00018328,2]
[382536043,1756659059991,-168.0,0.00018332,2]
[382536044,1756659060001,-2634.84666179,0.00018345,2]
[382536045,1756659060011,-683.5714847,0.00018346,2]
[382536046,1756659060021,-151.0,0.00018346,2]
[382536047,1756659060031,-151.0,0.00018346,2]
[382536048,1756659060043,-151.0,0.00018346,2]
[382536049,1756659060053,-151.0,0.00018346,2]
[382536050,1756659060064,-151.0,0.00018346,2]
[382536051,1756659060074,-266.07364189,0.00018346,2]
[382536052,1756659060084,-151.0,0.00018346,2]
[382536053,1756659060093,-480.0,0.00018346,2]
[382536054,1756659060103,-658.16,0.00018346,2]
[382536055,1756659060114,-578.71,0.00018346,2]
[382536056,1756659060124,-1772.12,0.00018346,2]
[382536057,1756659060134,-991.87,0.00018346,2]
[382536058,1756659060145,-1223.35,0.00018346,2]
[382536059,1756659060155,-151.0,0.00018346,2]
[382536060,1756659060165,-1263.34,0.00018346,2]
[382536061,1756659060175,-999.32,0.00018346,2]
[382536062,1756659060186,-151.0,0.00018346,2]
[382536063,1756659060197,-596.34,0.00018346,2]
[382536064,1756659060207,-570.43,0.00018346,2]
[382536065,1756659060219,-1219.86,0.00018346,2]
[382536066,1756659060229,-480.0,0.00018346,2]
[382536067,1756659060239,-493.03,0.00018346,2]
[382536068,1756659060248,-480.0,0.00018346,2]
[382536069,1756659060259,-726.34,0.00018346,2]
[382536070,1756659060270,-656.23,0.00018346,2]
[382536071,1756659060281,-480.0,0.00018346,2]
[382536072,1756659060292,-902.06,0.00018346,2]
[382536073,1756659060303,-488.15,0.00018346,2]
[382536074,1756659060315,-480.0,0.00018346,2]
[382536075,1756659060325,-480.0,0.00018346,2]
[382536076,1756659060337,-480.0,0.00018346,2]
[382536077,1756659060348,-1094.1,0.00018346,2]
[382536078,1756659060358,-724.91,0.00018346,2]
[382536079,1756659060368,-734.1,0.00018346,2]
[382536080,1756659060379,-480.0,0.00018346,2]
[382536081,1756659060389,-480.0,0.00018346,2]
[382536082,1756659060399,-499.45047624,0.00018346,2]
[382536083,1756659060410,-480.0,0.00018346,2]
[382536084,1756659060420,-592.03,0.00018346,2]
[382536085,1756659060430,-1526.65,0.00018346,2]
[382536086,1756659060440,-635.15,0.00018346,2]
[382536087,1756659060450,-480.0,0.00018346,2]
[382536088,1756659060461,-1595.39,0.00018346,2]
[382536089,1756659060470,-785.27,0.00018346,2]
[382536090,1756659060480,-480.0,0.00018346,2]
[382536091,1756659060490,-746.61,0.00018346,2]
[382536092,1756659060500,-480.0,0.00018346,2]
[382536093,1756659060510,-1249.36,0.00018346,2]
[382536094,1756659060520,-808.76,0.00018346,2]
[382536095,1756659060530,-1205.0,0.00018346,2]